Workbook

Sheet Start
B1: OM DENNE SKABELON
B2: Opret en finansiel plan for en iværksættervirksomhed ved hjælp af denne skabelon.
B3: Få et overblik over en finansiel plan i regnearket Oversigt.
B4: Brug skabelonen startomkostninger og profit og tab-skabelonregneark for at holde styr på opstartsomkostninger samt overskud og tab.
B5: Eksempel på opstartsomkostninger og profit og tab-eksempelregneark indeholder eksempeldata i tabeller.
B6: Bemærk!
B7: Der er angivet yderligere vejledning i kolonne A i alle regneark. Denne tekst er skjult med vilje. Du kan fjerne tekst ved at markere kolonne A og derefter vælge Slet. For ikke længere at skjule tekst skal du markere kolonne A og derefter ændre skriftfarven.
B8: Hvis du vil vide mere om tabeller, skal du trykke på SKIFT og derefter F10, mens du er i en tabel, vælge indstillingen TABEL og derefter vælge ALTERNATIV TEKST.

Sheet Oversigt
B1: FINANSIEL PLAN FOR IVÆRKSÆTTERVIRKSOMHED
B2: Oprettelse af en finansiel plan er stedet, hvor al forretningsplanlægning samles. Når du har identificeret dit produkt, målmarkedet og målkunderne sammen med priser, er du klar til at begynde at forudsige omkostninger, salg og overskud. Disse elementer sammen med dine antagelser kan hjælpe dig med at estimere din salgsprognose. Den anden side af virksomheden vil være de udgifter, du forventer at få. Dette er vigtigt løbende for at se, hvornår du er rentabel. Det er også vigtigt, når du starter din virksomhed, at vide, hvilke udgifter du skal betale, før kundesalget eller de penge, de genererer, modtages.
B3: Forventede opstartsomkostninger: Tabellen under den næste fane, skabelonen Opstartsomkostninger, indeholder en tom skabelon med nogle instruktioner til at komme i gang. Den næste fane, eksempel på opstartsomkostninger, viser et eksempel på løbende og engangsomkostningselementer, som du muligvis skal bruge for at åbne din virksomhed. Mange virksomheder betales på kredit over tid og har ikke penge på vej ind med det samme. Det er vigtigt at anslå, hvornår kontanter begynder at løbe ind i virksomheden ved at gøre en antagelse om, hvor mange måneder med tilbagevendende elementer, ud over engangsomkostninger, du skal betale for besparelser eller en indledende investering.
B4: Forventet profit og tabs-model: Under fanen profit og tabs-skabelonen, kan du finde en tom skabelon til at lave salgsprognoser og en profit- og tabs-model. Den næste fane, profit- og tabs-eksempel, viser et eksempel på de projiceringer, som en lille virksomhed forudsiger for deres første 12 måneders drift. Den øverste del af tabellen i hver model viser forventet salg og bruttofortjeneste. Dette er et godt sted at begynde at oprette din salgsprognose. I næste afsnit nedenfor angives de tilbagevendende udgifter, du projicerer for de samme måneder. Disse skal være i overensstemmelse med de anslåede opstartsomkostninger, du har fuldført i det forrige afsnit. Nederst i denne model begynder du at se, hvornår du bliver rentabel, og hvilke udgiftselementer der har størst indflydelse på din rentabilitet.
B5: Hold styr på dine antagelser, som du foretager i forbindelse med vurdering af omsætning og omkostninger for solgte varer. For virksomheder, der endnu ikke er begyndt at drive virksomhed, bør du have en forståelse af, hvordan du estimerer disse for dit produkt eller din tjeneste. Nogle retningslinjer for vurdering ses nedenfor:
B6: Indtægter: Start med at fastslå fra dit målmarked (gruppen af potentielle kunder, virksomheder eller forbrugere), hvor mange af disse der vil være mål i det første år. Hvilken procentdel af disse forventer du at lukke? Hvad er en gennemsnitlig transaktion for dem for at købe dit produkt eller din tjeneste? Hvor mange kan du levere i den første måned, den anden osv.? Det kan være en god idé at starte med et tal i den første måned og øge det med en procentdel, f.eks. 10 %. Hvis du f.eks. sælger rengøringstjenester til små virksomheder i din by, og der er 500 virksomheder, som du mener har brug for tjenesten. Hvis den gennemsnitlige kontrakt er for 250 USD pr. måned, skal du anslå, hvor mange virksomheder du kan logge på en kontrakt i hver måned for det første år.
B7: Omkostninger af solgte varer: Dette skal beregnes for produkter og visse tjenester. Det er de inkluderede omkostninger for at producere produktet. Hvis du f.eks. sælger tøj, vil vareforbrug være den pris, du har betalt for at købe tøj fra en producent. Hvis du laver dem selv, vil det være prisen på materialer og arbejdet for at lave dem. For tjenester ville det være den direkte pris for en timefakturerbart arbejde. Alt under bruttooverskud på profit og tab er faste eller yderligere omkostninger for den overordnede virksomhed, f.eks. leje eller telefon eller endda marketing.

Sheet Skabelon til startomkostninger
B1: STARTOMKOSTNINGER
B2: Din Kaffebar | C2: =TODAY() -> 2022-01-18
B4: VAREUDGIFTER | C4: MÅNEDER | D4: OMKOSTNINGER PR. MÅNED | E4: ENGANGSOMKOSTNINGER | F4: OMKOSTNING_IALT
B5: Annoncering/marketing | F5: =(C5*D5)+IF(E5>0,E5,0) -> kr. 0
B6: Løn til medarbejdere | F6: =(C6*D6)+IF(E6>0,E6,0) -> kr. 0
B7: Lønafgifter og -fordele for medarbejdere | F7: kr. 0
B8: Lej/lease betalinger/hjælpeprogrammer | F8: kr. 0
B9: Frankering/forsendelse | F9: kr. 0
B10: ANSLÅEDE STARTOMKOSTNINGER | F10: =SUBTOTAL(109,StartUp[OMKOSTNING_IALT]) -> 0

Sheet Eksempel på startomkostninger
B1: STARTOMKOSTNINGER
B2: ='Skabelon til startomkostninger'!B2 -> Din Kaffebar | C2: =TODAY() -> 2022-01-18
B4: VAREUDGIFTER | C4: MÅNEDER | D4: OMKOSTNINGER PR. MÅNED | E4: ENGANGSOMKOSTNINGER | F4: OMKOSTNING_IALT
B5: Annoncering/marketing | C5: 3 | D5: kr. 300 | E5: kr. 2,000 | F5: =(C5*D5)+IF(E5>0,E5,0) -> kr. 2,900
B6: Løn til medarbejdere | C6: 4 | D6: kr. 3,500 | E6: kr. 2 | F6: =(C6*D6)+IF(E6>0,E6,0) -> kr. 14,002
B7: Lønafgifter og -fordele for medarbejdere | C7: 4 | D7: kr. 500 | E7: kr. 2,000 | F7: kr. 4,000
B8: Lej/lease betalinger/hjælpeprogrammer | C8: 4 | D8: kr. 750 | E8: kr. 3,000 | F8: kr. 6,000
B9: Frankering/forsendelse | C9: 1 | D9: kr. 25 | E9: kr. 25 | F9: kr. 50
B10: ANSLÅEDE STARTOMKOSTNINGER | F10: =SUM(F6:F9) -> kr. 24,052

Sheet Profit og tab-skabelon
B1: STARTOMKOSTNINGER
B2: ='Skabelon til startomkostninger'!B2 -> Din Kaffebar | C2: =TODAY() -> 2022-01-18
B4: OMSÆTNING | C4: JAN | D4: FEB | E4: MAR | F4: APR | G4: MAJ | H4: JUN | I4: JUL | J4: AUG | K4: SEP | L4: OKT | M4: NOV | N4: DEC | O4: ÅR TIL DATO
B5: Anslået produktsalg | C5: kr. 0 | D5: kr. 0 | E5: kr. 0 | F5: kr. 0 | G5: kr. 0 | H5: kr. 0 | I5: kr. 0 | J5: kr. 0 | K5: kr. 0 | L5: kr. 0 | M5: kr. 0 | N5: kr. 0 | O5: =SUM(C5:N5) -> kr. 0
B6: Færre salgsreturer og Rabatter | C6: kr. 0 | D6: kr. 0 | E6: kr. 0 | F6: kr. 0 | G6: kr. 0 | H6: kr. 0 | I6: kr. 0 | J6: kr. 0 | K6: kr. 0 | L6: kr. 0 | M6: kr. 0 | N6: kr. 0 | O6: =SUM(C6:N6) -> kr. 0
B7: Tjenesteomsætning | C7: kr. 0 | D7: kr. 0 | E7: kr. 0 | F7: kr. 0 | G7: kr. 0 | H7: kr. 0 | I7: kr. 0 | J7: kr. 0 | K7: kr. 0 | L7: kr. 0 | M7: kr. 0 | N7: kr. 0 | O7: kr. 0
B8: Anden omsætning | C8: kr. 0 | D8: kr. 0 | E8: kr. 0 | F8: kr. 0 | G8: kr. 0 | H8: kr. 0 | I8: kr. 0 | J8: kr. 0 | K8: kr. 0 | L8: kr. 0 | M8: kr. 0 | N8: kr. 0 | O8: kr. 0
B9: Nettoomsætning | C9: =SUBTOTAL(109,SampleRevenue[JAN]) -> kr. 0 | D9: =SUBTOTAL(109,SampleRevenue[FEB]) -> kr. 0 | E9: =SUBTOTAL(109,SampleRevenue[MAR]) -> kr. 0 | F9: =SUBTOTAL(109,SampleRevenue[APR]) -> kr. 0 | G9: =SUBTOTAL(109,SampleRevenue[MAJ]) -> kr. 0 | H9: =SUBTOTAL(109,SampleRevenue[JUN]) -> kr. 0 | I9: =SUBTOTAL(109,SampleRevenue[JUL]) -> kr. 0 | J9: =SUBTOTAL(109,SampleRevenue[AUG]) -> kr. 0 | K9: =SUBTOTAL(109,SampleRevenue[SEP]) -> kr. 0 | L9: =SUBTOTAL(109,SampleRevenue[OKT]) -> kr. 0 | M9: =SUBTOTAL(109,SampleRevenue[NOV]) -> kr. 0 | N9: =SUBTOTAL(109,SampleRevenue[DEC]) -> kr. 0 | O9: =SUM(SampleRevenue[[#Totals],[JAN]:[DEC]]) -> kr. 0
B10: Solgte varers købspris | C10: =C5*0.4 -> kr. 0 | D10: kr. 0 | E10: kr. 0 | F10: kr. 0 | G10: kr. 0 | H10: kr. 0 | I10: kr. 0 | J10: kr. 0 | K10: kr. 0 | L10: kr. 0 | M10: kr. 0 | N10: kr. 0 | O10: kr. 0
B11: Bruttoavance | C11: =IFERROR(SampleRevenue[[#Totals],[JAN]]-C10,"") -> kr. 0 | D11: =IFERROR(SampleRevenue[[#Totals],[FEB]]-D10,"") -> kr. 0 | E11: =IFERROR(SampleRevenue[[#Totals],[MAR]]-E10,"") -> kr. 0 | F11: =IFERROR(SampleRevenue[[#Totals],[APR]]-F10,"") -> kr. 0 | G11: =IFERROR(SampleRevenue[[#Totals],[MAJ]]-G10,"") -> kr. 0 | H11: =IFERROR(SampleRevenue[[#Totals],[JUN]]-H10,"") -> kr. 0 | I11: =IFERROR(SampleRevenue[[#Totals],[JUL]]-I10,"") -> kr. 0 | J11: =IFERROR(SampleRevenue[[#Totals],[AUG]]-J10,"") -> kr. 0 | K11: =IFERROR(SampleRevenue[[#Totals],[SEP]]-K10,"") -> kr. 0 | L11: =IFERROR(SampleRevenue[[#Totals],[OKT]]-L10,"") -> kr. 0 | M11: =IFERROR(SampleRevenue[[#Totals],[NOV]]-M10,"") -> kr. 0 | N11: =IFERROR(SampleRevenue[[#Totals],[DEC]]-N10,"") -> kr. 0 | O11: kr. 0
B13: UDGIFTER | C13: JAN | D13: FEB | E13: MAR | F13: APR | G13: MAJ | H13: JUN | I13: JUL | J13: AUG | K13: SEP | L13: OKT | M13: NOV | N13: DEC | O13: ÅR TIL DATO
B14: Lønninger | C14: kr. 0 | D14: kr. 0 | E14: kr. 0 | F14: kr. 0 | G14: kr. 0 | H14: kr. 0 | I14: kr. 0 | J14: kr. 0 | K14: kr. 0 | L14: kr. 0 | M14: kr. 0 | N14: kr. 0 | O14: =SUM(C14:N14) -> kr. 0
B15: Marketing/annoncering | C15: kr. 0 | D15: kr. 0 | E15: kr. 0 | F15: kr. 0 | G15: kr. 0 | H15: kr. 0 | I15: kr. 0 | J15: kr. 0 | K15: kr. 0 | L15: kr. 0 | M15: kr. 0 | N15: kr. 0 | O15: =SUM(C15:N15) -> kr. 0
B16: Salgsprovisioner | C16: kr. 0 | D16: kr. 0 | E16: kr. 0 | F16: kr. 0 | G16: kr. 0 | H16: kr. 0 | I16: kr. 0 | J16: kr. 0 | K16: kr. 0 | L16: kr. 0 | M16: kr. 0 | N16: kr. 0 | O16: kr. 0
B17: Husleje | C17: kr. 0 | D17: kr. 0 | E17: kr. 0 | F17: kr. 0 | G17: kr. 0 | H17: kr. 0 | I17: kr. 0 | J17: kr. 0 | K17: kr. 0 | L17: kr. 0 | M17: kr. 0 | N17: kr. 0 | O17: kr. 0
B18: Andet 1 | C18: kr. 0 | D18: kr. 0 | E18: kr. 0 | F18: kr. 0 | G18: kr. 0 | H18: kr. 0 | I18: kr. 0 | J18: kr. 0 | K18: kr. 0 | L18: kr. 0 | M18: kr. 0 | N18: kr. 0 | O18: kr. 0
B19: Samlede udgifter | C19: =IF(SUM(C14:C18)=0,"",SUM(C14:C18)) ->  | O19: =SUM(SampleExpenses[[#Totals],[JAN]:[DEC]]) -> kr. 0
B20: Indtægt før afgifter | C20: =IFERROR('Profit og tab-skabelon'!$C$11-SampleExpenses[[#Totals],[JAN]],"") ->  | D20: =IFERROR('Profit og tab-skabelon'!$C$11-SampleExpenses[[#Totals],[FEB]],"") ->  | E20: =IFERROR('Profit og tab-skabelon'!$C$11-SampleExpenses[[#Totals],[MAR]],"") ->  | F20: =IFERROR('Profit og tab-skabelon'!$C$11-SampleExpenses[[#Totals],[APR]],"") ->  | G20: =IFERROR('Profit og tab-skabelon'!$C$11-SampleExpenses[[#Totals],[MAJ]],"") ->  | H20: =IFERROR('Profit og tab-skabelon'!$C$11-SampleExpenses[[#Totals],[JUN]],"") ->  | I20: =IFERROR('Profit og tab-skabelon'!$C$11-SampleExpenses[[#Totals],[JUL]],"") ->  | J20: =IFERROR('Profit og tab-skabelon'!$C$11-SampleExpenses[[#Totals],[AUG]],"") ->  | K20: =IFERROR('Profit og tab-skabelon'!$C$11-SampleExpenses[[#Totals],[SEP]],"") ->  | L20: =IFERROR('Profit og tab-skabelon'!$C$11-SampleExpenses[[#Totals],[OKT]],"") ->  | M20: =IFERROR('Profit og tab-skabelon'!$C$11-SampleExpenses[[#Totals],[NOV]],"") ->  | N20: =IFERROR('Profit og tab-skabelon'!$C$11-SampleExpenses[[#Totals],[DEC]],"") ->  | O20: kr. 0
B21: Indkomstskat | C21: =IFERROR(C20*0.15," ") ->  | D21: =IFERROR(D20*0.15," ") ->  | E21: =IFERROR(E20*0.15," ") ->  | O21: =SUM('Profit og tab-skabelon'!$C$21:$N$21) -> kr. 0
B23: NETTOINDTÆGT | C23: =IFERROR(C20-'Profit og tab-skabelon'!$C$21,"") ->  | D23: =IFERROR(D20-'Profit og tab-skabelon'!$D$21,"") ->  | E23: =IFERROR(E20-'Profit og tab-skabelon'!$E$21,"") ->  | F23: =IFERROR(F20-'Profit og tab-skabelon'!$F$21,"") ->  | G23: =IFERROR(G20-'Profit og tab-skabelon'!$G$21,"") ->  | H23: =IFERROR(H20-'Profit og tab-skabelon'!$H$21,"") ->  | I23: =IFERROR(I20-'Profit og tab-skabelon'!$I$21,"") ->  | J23: =IFERROR(J20-'Profit og tab-skabelon'!$J$21,"") ->  | K23: =IFERROR(K20-'Profit og tab-skabelon'!$K$21,"") ->  | L23: =IFERROR(L20-'Profit og tab-skabelon'!$L$21,"") ->  | M23: =IFERROR(M20-'Profit og tab-skabelon'!$M$21,"") ->  | N23: =IFERROR(N20-'Profit og tab-skabelon'!$N$21,"") ->  | O23: =IFERROR(O20-'Profit og tab-skabelon'!$O$21,"") -> kr. 0

Sheet Profit og tab-eksempel
B1: STARTOMKOSTNINGER
B2: ='Skabelon til startomkostninger'!B2 -> Din Kaffebar | C2: =TODAY() -> 2022-01-18
B4: OMSÆTNING | C4: JAN | D4: FEB | E4: MAR | F4: APR | G4: MAJ | H4: JUN | I4: JUL | J4: AUG | K4: SEP | L4: OKT | M4: NOV | N4: DEC | O4: ÅR TIL DATO
B5: Anslået produktsalg | C5: kr. 5,000 | D5: kr. 13,000 | E5: kr. 16,000 | F5: kr. 7,000 | G5: kr. 14,500 | H5: kr. 16,400 | I5: kr. 22,500 | J5: kr. 23,125 | K5: kr. 24,549 | L5: kr. 22,000 | M5: kr. 25,000 | N5: kr. 27,349 | O5: =SUM(C5:N5) -> kr. 216,423
B6: Færre salgsreturer og Rabatter | C6: kr. 0 | D6: kr. -350 | E6: kr. 0 | F6: kr. -206 | G6: kr. -234 | H6: kr. 0 | I6: kr. 0 | J6: kr. -280 | K6: kr. -1,200 | L6: kr. -1,600 | M6: kr. 0 | N6: kr. -2,400 | O6: =SUM(C6:N6) -> kr. -6,270
B7: Tjenesteomsætning | C7: kr. 0 | D7: kr. 0 | E7: kr. 0 | F7: kr. 0 | G7: kr. 0 | H7: kr. 250 | I7: kr. 350 | J7: kr. 100 | K7: kr. 0 | L7: kr. 0 | M7: kr. 1,245 | N7: kr. 1,360 | O7: kr. 3,305
B8: Anden omsætning | C8: kr. 0 | D8: kr. 0 | E8: kr. 0 | F8: kr. 0 | G8: kr. 0 | H8: kr. 0 | I8: kr. 0 | J8: kr. 1,500 | K8: kr. 0 | L8: kr. 0 | M8: kr. 0 | N8: kr. 0 | O8: kr. 1,500
B9: Nettoomsætning | C9: =SUBTOTAL(109,ActualRevenue[JAN]) -> kr. 5,000 | D9: =SUBTOTAL(109,ActualRevenue[FEB]) -> kr. 12,650 | E9: =SUBTOTAL(109,ActualRevenue[MAR]) -> kr. 16,000 | F9: =SUBTOTAL(109,ActualRevenue[APR]) -> kr. 6,794 | G9: =SUBTOTAL(109,ActualRevenue[MAJ]) -> kr. 14,266 | H9: =SUBTOTAL(109,ActualRevenue[JUN]) -> kr. 16,650 | I9: =SUBTOTAL(109,ActualRevenue[JUL]) -> kr. 22,850 | J9: =SUBTOTAL(109,ActualRevenue[AUG]) -> kr. 24,445 | K9: =SUBTOTAL(109,ActualRevenue[SEP]) -> kr. 23,349 | L9: =SUBTOTAL(109,ActualRevenue[OKT]) -> kr. 20,400 | M9: =SUBTOTAL(109,ActualRevenue[NOV]) -> kr. 26,245 | N9: =SUBTOTAL(109,ActualRevenue[DEC]) -> kr. 26,309 | O9: =SUM(ActualRevenue[[#Totals],[JAN]:[DEC]]) -> kr. 214,958
B10: Solgte varers købspris | C10: =C5*0.4 -> kr. 2,000 | D10: kr. 5,200 | E10: kr. 6,400 | F10: kr. 2,800 | G10: kr. 5,800 | H10: kr. 6,560 | I10: kr. 9,000 | J10: kr. 9,250 | K10: kr. 9,820 | L10: kr. 8,800 | M10: kr. 10,000 | N10: kr. 10,940 | O10: kr. 86,569
B11: Bruttoavance | C11: =IFERROR(ActualRevenue[[#Totals],[JAN]]-C10,"") -> kr. 3,000 | D11: =IFERROR(ActualRevenue[[#Totals],[FEB]]-D10,"") -> kr. 7,450 | E11: =IFERROR(ActualRevenue[[#Totals],[MAR]]-E10,"") -> kr. 9,600 | F11: =IFERROR(ActualRevenue[[#Totals],[APR]]-F10,"") -> kr. 3,994 | G11: =IFERROR(ActualRevenue[[#Totals],[MAJ]]-G10,"") -> kr. 8,466 | H11: =IFERROR(ActualRevenue[[#Totals],[JUN]]-H10,"") -> kr. 10,090 | I11: =IFERROR(ActualRevenue[[#Totals],[JUL]]-I10,"") -> kr. 13,850 | J11: =IFERROR(ActualRevenue[[#Totals],[AUG]]-J10,"") -> kr. 15,195 | K11: =IFERROR(ActualRevenue[[#Totals],[SEP]]-K10,"") -> kr. 13,529 | L11: =IFERROR(ActualRevenue[[#Totals],[OKT]]-L10,"") -> kr. 11,600 | M11: =IFERROR(ActualRevenue[[#Totals],[NOV]]-M10,"") -> kr. 16,245 | N11: =IFERROR(ActualRevenue[[#Totals],[DEC]]-N10,"") -> kr. 15,369 | O11: kr. 128,389
B13: UDGIFTER | C13: JAN | D13: FEB | E13: MAR | F13: APR | G13: MAJ | H13: JUN | I13: JUL | J13: AUG | K13: SEP | L13: OKT | M13: NOV | N13: DEC | O13: ÅR TIL DATO
B14: Lønninger | C14: kr. 2,500 | D14: kr. 2,500 | E14: kr. 3,500 | F14: kr. 5,000 | G14: kr. 5,000 | H14: kr. 5,000 | I14: kr. 8,000 | J14: kr. 9,000 | K14: kr. 9,000 | L14: kr. 9,000 | M14: kr. 9,000 | N14: kr. 9,000 | O14: =SUM(C14:N14) -> kr. 76,500
B15: Marketing/annoncering | C15: kr. 400 | D15: kr. 450 | E15: kr. 450 | F15: kr. 450 | G15: kr. 900 | H15: kr. 900 | I15: kr. 900 | J15: kr. 900 | K15: kr. 900 | L15: kr. 900 | M15: kr. 1,200 | N15: kr. 1,200 | O15: =SUM(C15:N15) -> kr. 9,550
B16: Salgsprovisioner | C16: kr. 250 | D16: kr. 650 | E16: kr. 800 | F16: kr. 350 | G16: kr. 725 | H16: kr. 820 | I16: kr. 1,125 | J16: kr. 1,156 | K16: kr. 1,227 | L16: kr. 1,100 | M16: kr. 1,250 | N16: kr. 1,367 | O16: kr. 10,821
B17: Husleje | C17: kr. 1,250 | D17: kr. 1,250 | E17: kr. 1,250 | F17: kr. 1,250 | G17: kr. 1,250 | H17: kr. 1,250 | I17: kr. 1,250 | J17: kr. 1,250 | K17: kr. 1,250 | L17: kr. 1,250 | M17: kr. 1,250 | N17: kr. 1,250 | O17: kr. 15,000
B18: Samlede udgifter | C18: =IF(SUM(C14:C17)=0,"",SUM(C14:C17)) -> kr. 4,400 | D18: kr. 4,850 | E18: kr. 6,000 | F18: kr. 7,050 | G18: kr. 7,875 | H18: kr. 7,970 | I18: kr. 11,275 | J18: kr. 12,306 | K18: kr. 12,377 | L18: kr. 12,250 | M18: kr. 12,700 | N18: kr. 12,817 | O18: =SUM(FaktiskeUdgifter[[#Totals],[JAN]:[DEC]]) -> kr. 111,871
B19: Indtægt før afgifter | C19: =IFERROR('Profit og tab-eksempel'!$C$11-FaktiskeUdgifter[[#Totals],[JAN]],"") -> kr. -1,400 | D19: =IFERROR('Profit og tab-eksempel'!$D$11-FaktiskeUdgifter[[#Totals],[FEB]],"") -> kr. 2,600 | E19: =IFERROR('Profit og tab-eksempel'!$E$11-FaktiskeUdgifter[[#Totals],[MAR]],"") -> kr. 3,600 | F19: =IFERROR('Profit og tab-eksempel'!$F$11-FaktiskeUdgifter[[#Totals],[APR]],"") -> kr. -3,056 | G19: =IFERROR('Profit og tab-eksempel'!$G$11-FaktiskeUdgifter[[#Totals],[MAJ]],"") -> kr. 591 | H19: =IFERROR('Profit og tab-eksempel'!$H$11-FaktiskeUdgifter[[#Totals],[JUN]],"") -> kr. 2,120 | I19: =IFERROR('Profit og tab-eksempel'!$I$11-FaktiskeUdgifter[[#Totals],[JUL]],"") -> kr. 2,575 | J19: =IFERROR('Profit og tab-eksempel'!$J$11-FaktiskeUdgifter[[#Totals],[AUG]],"") -> kr. 2,889 | K19: =IFERROR('Profit og tab-eksempel'!$K$11-FaktiskeUdgifter[[#Totals],[SEP]],"") -> kr. 1,152 | L19: =IFERROR('Profit og tab-eksempel'!$L$11-FaktiskeUdgifter[[#Totals],[OKT]],"") -> kr. -650 | M19: =IFERROR('Profit og tab-eksempel'!$M$11-FaktiskeUdgifter[[#Totals],[NOV]],"") -> kr. 3,545 | N19: =IFERROR('Profit og tab-eksempel'!$N$11-FaktiskeUdgifter[[#Totals],[DEC]],"") -> kr. 2,552 | O19: =SUM(C19:N19) -> kr. 16,518
B20: Indkomstskat | C20: =C19*0.15 -> kr. -210 | D20: kr. 390 | E20: =E19*0.15 -> kr. 540 | F20: =F19*0.15 -> kr. -458 | G20: =G19*0.15 -> kr. 89 | H20: =H19*0.15 -> kr. 318 | I20: =I19*0.15 -> kr. 386 | J20: =J19*0.15 -> kr. 433 | K20: =K19*0.15 -> kr. 173 | L20: =L19*0.15 -> kr. -98 | M20: =M19*0.15 -> kr. 532 | N20: =N19*0.15 -> kr. 383 | O20: =SUM('Profit og tab-eksempel'!$C$20:$N$20) -> kr. 2,478
B22: NETTOINDTÆGT | C22: =IFERROR(C19-'Profit og tab-eksempel'!$C$20," ") -> kr. -1,190 | D22: =IFERROR(D19-'Profit og tab-eksempel'!$D$20," ") -> kr. 2,210 | E22: =IFERROR(E19-'Profit og tab-eksempel'!$E$20,"") -> kr. 3,060 | F22: =IFERROR(F19-'Profit og tab-eksempel'!$F$20,"") -> kr. -2,598 | G22: =IFERROR(G19-'Profit og tab-eksempel'!$G$20,"") -> kr. 502 | H22: =IFERROR(H19-'Profit og tab-eksempel'!$H$20,"") -> kr. 1,802 | I22: =IFERROR(I19-'Profit og tab-eksempel'!$I$20,"") -> kr. 2,189 | J22: =IFERROR(J19-'Profit og tab-eksempel'!$J$20,"") -> kr. 2,455 | K22: =IFERROR(K19-'Profit og tab-eksempel'!$K$20,"") -> kr. 979 | L22: =IFERROR(L19-'Profit og tab-eksempel'!$L$20,"") -> kr. -553 | M22: =IFERROR(M19-'Profit og tab-eksempel'!$M$20,"") -> kr. 3,013 | N22: =IFERROR(N19-'Profit og tab-eksempel'!$N$20,"") -> kr. 2,169 | O22: =IFERROR(O19-'Profit og tab-eksempel'!$O$20,"") -> kr. 14,040
